[Event "CCT Chessable Masters Play-In 2025"]
[Site "Online"]
[Date "2025.02.17"]
[Round "1.65"]
[White "Alekseenko, Kirill"]
[Black "Vaishali, Rameshbabu"]
[Result "0-1"]
[ECO "B92"]
[WhiteElo "2661"]
[BlackElo "2476"]
[PlyCount "52"]
[EventDate "2025.02.13"]
[EventType "swiss"]
[EventCountry "NET"]
[TimeControl "600"]
[WhiteClock "0:02:58"]
[BlackClock "0:06:01"]

1. e4 {[%emt 0:00:06]} c5 {[%emt 0:00:02]} 2. Nf3 {[%emt 0:00:01]} d6 {[%emt 0:00:01]} 3. d4 {[%emt 0:00:04]} cxd4 {[%emt 0:00:00]} 4. Nxd4 {[%emt 0:00:01]} Nf6 {[%emt 0:00:01]} 5. Nc3 {[%emt 0:00:00]} a6 {[%emt 0:00:01]} 6. Be2 {[%emt 0:00:01]} e5 {[%emt 0:00:02]} 7. Nb3 {[%emt 0:00:01]} Be7 {[%emt 0:00:02]} 8. O-O {[%emt 0:00:01]} O-O {[%emt 0:00:03]} 9. Kh1 {[%emt 0:00:00]} Nc6 {[%emt 0:00:08]} 10. Be3 {[%emt 0:00:15]} Be6 {[%emt 0:00:09]} 11. Bf3 {[%emt 0:00:11]} a5 {[%emt 0:00:14]} 12. Nd5 {[%emt 0:00:15]} a4 {[%emt 0:00:10]} 13. Nd2 {[%emt 0:00:19]} a3 {[%emt 0:00:32]} 14. b3 {[%emt 0:00:04]} Bxd5 {[%emt 0:00:08]} 15. exd5 {[%emt 0:00:04]} Nb4 {[%emt 0:00:01]} 16. c4 {[%emt 0:00:21]} Nd7 {[%emt 0:00:03]} 17. Ne4 {[%emt 0:00:33]} f5 {[%emt 0:00:04]} 18. Nc3 {[%emt 0:00:02]} Bg5 {[%emt 0:00:16]} 19. Qd2 {[%emt 0:00:28]} f4 {[%emt 0:00:10]} 20. Nb5 {[%emt 0:00:25]} fxe3 {[%emt 0:00:24]} 21. Qxb4 {[%emt 0:00:01]} Nc5 {[%emt 0:00:09]} 22. fxe3 {[%emt 0:00:13]} Bxe3 {[%emt 0:00:06]} 23. Bg4 {[%emt 0:00:16]} Qh4 {[%emt 0:00:24]} 24. Bh3 {[%emt 0:00:21]} Nd3 {[%emt 0:00:27]} 25. Qxd6 {[%emt 0:02:47]} Rxf1+ {[%emt 0:00:22]} 26. Rxf1 {[%emt 0:00:12]} Nf2+ {[%emt 0:00:00]} 0-1

[Event "CCT Chessable Masters Play-In 2025"]
[Site "Online"]
[Date "2025.02.17"]
[Round "1.66"]
[White "Harsha Bharathakoti"]
[Black "Svane, Rasmus"]
[Result "0-1"]
[ECO "E21"]
[WhiteElo "2537"]
[BlackElo "2621"]
[PlyCount "82"]
[EventDate "2025.02.13"]
[EventType "swiss"]
[EventCountry "NET"]
[TimeControl "600"]
[WhiteClock "0:01:09"]
[BlackClock "0:02:20"]

1. d4 {[%emt 0:00:12]} Nf6 {[%emt 0:00:04]} 2. c4 {[%emt 0:00:05]} e6 {[%emt 0:00:01]} 3. Nc3 {[%emt 0:00:01]} Bb4 {[%emt 0:00:02]} 4. Nf3 {[%emt 0:00:01]} O-O {[%emt 0:00:09]} 5. Bg5 {[%emt 0:00:11]} c5 {[%emt 0:00:19]} 6. Rc1 {[%emt 0:00:11]} h6 {[%emt 0:00:02]} 7. Bh4 {[%emt 0:00:02]} cxd4 {[%emt 0:00:10]} 8. Nxd4 {[%emt 0:00:02]} d5 {[%emt 0:00:07]} 9. cxd5 {[%emt 0:00:28]} g5 {[%emt 0:00:28]} 10. Bg3 {[%emt 0:00:02]} Qxd5 {[%emt 0:00:01]} 11. e3 {[%emt 0:02:06]} Qxa2 {[%emt 0:00:02]} 12. Bd3 {[%emt 0:00:04]} Qxb2 {[%emt 0:00:01]} 13. O-O {[%emt 0:00:01]} Bxc3 {[%emt 0:00:01]} 14. Rc2 {[%emt 0:00:09]} Qb4 {[%emt 0:00:47]} 15. Nb5 {[%emt 0:00:01]} Rd8 {[%emt 0:02:14]} 16. Bh7+ {[%emt 0:01:42]} Kxh7 {[%emt 0:00:11]} 17. Qxd8 {[%emt 0:00:00]} Qxb5 {[%emt 0:01:00]} 18. Rxc3 {[%emt 0:00:08]} Nbd7 {[%emt 0:00:08]} 19. Rxc8 {[%emt 0:00:07]} Rxc8 {[%emt 0:00:02]} 20. Qxc8 {[%emt 0:00:00]} a5 {[%emt 0:00:06]} 21. Qc2+ {[%emt 0:00:05]} Kg7 {[%emt 0:00:02]} 22. Rb1 {[%emt 0:00:01]} Qd5 {[%emt 0:00:04]} 23. Qb2 {[%emt 0:00:14]} b6 {[%emt 0:00:19]} 24. Bc7 {[%emt 0:00:03]} a4 {[%emt 0:00:02]} 25. Bxb6 {[%emt 0:00:01]} a3 {[%emt 0:00:07]} 26. Qa1 {[%emt 0:00:29]} a2 {[%emt 0:00:06]} 27. Rd1 {[%emt 0:00:02]} Qb3 {[%emt 0:00:13]} 28. Rxd7 {[%emt 0:00:17]} Qxb6 {[%emt 0:00:06]} 29. Rd1 {[%emt 0:00:40]} Qb3 {[%emt 0:00:00]} 30. Rd2 {[%emt 0:00:03]} Qb1+ {[%emt 0:00:03]} 31. Rd1 {[%emt 0:00:00]} Qc2 {[%emt 0:00:00]} 32. Rc1 {[%emt 0:00:15]} Qb3 {[%emt 0:00:01]} 33. Qd4 {[%emt 0:00:12]} Kg6 {[%emt 0:00:04]} 34. Ra1 {[%emt 0:00:26]} Nd5 {[%emt 0:00:07]} 35. Qe4+ {[%emt 0:00:23]} Kg7 {[%emt 0:00:01]} 36. Qd4+ {[%emt 0:00:02]} Kg6 {[%emt 0:00:00]} 37. Qe4+ {[%emt 0:00:00]} Kf6 {[%emt 0:00:04]} 38. Qd4+ {[%emt 0:00:01]} e5 {[%emt 0:00:01]} 39. Qd2 {[%emt 0:00:01]} Qb1+ {[%emt 0:00:04]} 40. Qc1 {[%emt 0:00:01]} Nc3 {[%emt 0:00:11]} 41. Kf1 {[%emt 0:00:02]} Qd3+ {[%emt 0:00:10]} 0-1

[Event "CCT Chessable Masters Play-In 2025"]
[Site "Online"]
[Date "2025.02.17"]
[Round "1.67"]
[White "Ter-Sahakyan, Samvel"]
[Black "Zhu, Jiner"]
[Result "1/2-1/2"]
[ECO "D38"]
[WhiteElo "2611"]
[BlackElo "2514"]
[PlyCount "83"]
[EventDate "2025.02.13"]
[EventType "swiss"]
[EventCountry "NET"]
[TimeControl "600"]
[WhiteClock "0:02:08"]
[BlackClock "0:03:31"]

1. d4 {[%emt 0:00:02]} Nf6 {[%emt 0:00:02]} 2. c4 {[%emt 0:00:04]} e6 {[%emt 0:00:01]} 3. Nf3 {[%emt 0:00:02]} d5 {[%emt 0:00:01]} 4. Nc3 {[%emt 0:00:01]} Bb4 {[%emt 0:00:02]} 5. Bg5 {[%emt 0:00:06]} h6 {[%emt 0:00:01]} 6. Bd2 {[%emt 0:00:01]} O-O {[%emt 0:00:05]} 7. g4 {[%emt 0:00:02]} Bxc3 {[%emt 0:00:11]} 8. Bxc3 {[%emt 0:00:03]} Ne4 {[%emt 0:00:01]} 9. Qc2 {[%emt 0:00:10]} b6 {[%emt 0:00:29]} 10. h4 {[%emt 0:00:23]} Bb7 {[%emt 0:00:54]} 11. g5 {[%emt 0:00:09]} h5 {[%emt 0:00:04]} 12. Rg1 {[%emt 0:00:29]} Nd7 {[%emt 0:00:22]} 13. Nd2 {[%emt 0:01:18]} Nxc3 {[%emt 0:00:05]} 14. bxc3 {[%emt 0:00:08]} g6 {[%emt 0:00:08]} 15. e3 {[%emt 0:00:23]} c5 {[%emt 0:00:12]} 16. f4 {[%emt 0:00:34]} cxd4 {[%emt 0:00:26]} 17. cxd4 {[%emt 0:00:01]} Rc8 {[%emt 0:00:00]} 18. Qb2 {[%emt 0:00:07]} dxc4 {[%emt 0:00:08]} 19. Bxc4 {[%emt 0:00:11]} Qe7 {[%emt 0:00:06]} 20. Kf2 {[%emt 0:00:11]} Rc7 {[%emt 0:00:15]} 21. Rac1 {[%emt 0:00:02]} Rfc8 {[%emt 0:00:01]} 22. Be2 {[%emt 0:00:20]} a6 {[%emt 0:01:06]} 23. Rxc7 {[%emt 0:00:13]} Rxc7 {[%emt 0:00:02]} 24. Rc1 {[%emt 0:00:00]} Qd8 {[%emt 0:00:15]} 25. a4 {[%emt 0:00:14]} Qc8 {[%emt 0:00:02]} 26. Rxc7 {[%emt 0:00:20]} Qxc7 {[%emt 0:00:00]} 27. Bd3 {[%emt 0:00:15]} Qc6 {[%emt 0:00:15]} 28. Be4 {[%emt 0:00:03]} Qc7 {[%emt 0:00:01]} 29. Qc2 {[%emt 0:00:05]} Qxc2 {[%emt 0:00:19]} 30. Bxc2 {[%emt 0:00:00]} b5 {[%emt 0:00:02]} 31. a5 {[%emt 0:00:11]} Nb8 {[%emt 0:00:10]} 32. e4 {[%emt 0:00:21]} Nc6 {[%emt 0:00:05]} 33. Nb3 {[%emt 0:00:01]} Kf8 {[%emt 0:00:00]} 34. Ke3 {[%emt 0:00:04]} Ke7 {[%emt 0:00:02]} 35. Bd1 {[%emt 0:00:13]} Bc8 {[%emt 0:00:07]} 36. Bf3 {[%emt 0:00:15]} Nb4 {[%emt 0:00:03]} 37. Kd2 {[%emt 0:00:05]} Kd8 {[%emt 0:00:22]} 38. Kc3 {[%emt 0:00:22]} Na2+ {[%emt 0:00:02]} 39. Kb2 {[%emt 0:00:05]} Nb4 {[%emt 0:00:01]} 40. Kc3 {[%emt 0:00:12]} Na2+ {[%emt 0:00:01]} 41. Kb2 {[%emt 0:00:05]} Nb4 {[%emt 0:00:00]} 42. Kc3 {[%emt 0:00:01]} 1/2-1/2

[Event "CCT Chessable Masters Play-In 2025"]
[Site "Online"]
[Date "2025.02.17"]
[Round "1.68"]
[White "Kobalia, Mikhail"]
[Black "Suyarov, Mukhammadzokhid"]
[Result "0-1"]
[ECO "C00"]
[WhiteElo "2538"]
[BlackElo "2465"]
[PlyCount "102"]
[EventDate "2025.02.13"]
[EventType "swiss"]
[EventCountry "NET"]
[TimeControl "600"]
[WhiteClock "0:01:38"]
[BlackClock "0:00:49"]

1. e4 {[%emt 0:00:03]} e6 {[%emt 0:00:03]} 2. d3 {[%emt 0:00:15]} d5 {[%emt 0:00:02]} 3. Nd2 {[%emt 0:00:01]} c5 {[%emt 0:00:03]} 4. Ngf3 {[%emt 0:00:02]} Nc6 {[%emt 0:00:01]} 5. g3 {[%emt 0:00:01]} Nf6 {[%emt 0:00:02]} 6. Bg2 {[%emt 0:00:01]} Be7 {[%emt 0:00:01]} 7. O-O {[%emt 0:00:01]} O-O {[%emt 0:00:01]} 8. Re1 {[%emt 0:00:00]} b5 {[%emt 0:00:02]} 9. e5 {[%emt 0:00:04]} Nd7 {[%emt 0:00:02]} 10. Nf1 {[%emt 0:00:01]} a5 {[%emt 0:00:04]} 11. h4 {[%emt 0:00:01]} Qc7 {[%emt 0:00:14]} 12. Bf4 {[%emt 0:00:03]} b4 {[%emt 0:00:01]} 13. Ne3 {[%emt 0:00:01]} Bb7 {[%emt 0:00:14]} 14. Qd2 {[%emt 0:00:17]} Nd4 {[%emt 0:00:10]} 15. Nxd4 {[%emt 0:00:10]} cxd4 {[%emt 0:00:00]} 16. Ng4 {[%emt 0:00:01]} Rfc8 {[%emt 0:00:10]} 17. Rac1 {[%emt 0:00:02]} a4 {[%emt 0:00:08]} 18. Nf6+ {[%emt 0:02:16]} gxf6 {[%emt 0:00:32]} 19. exf6 {[%emt 0:00:02]} Qc5 {[%emt 0:01:42]} 20. fxe7 {[%emt 0:00:36]} Qxe7 {[%emt 0:00:00]} 21. Bh3 {[%emt 0:00:03]} Ra6 {[%emt 0:00:22]} 22. Qe2 {[%emt 0:00:16]} Qf6 {[%emt 0:00:14]} 23. Bg5 {[%emt 0:00:12]} Qg7 {[%emt 0:00:14]} 24. Qd2 {[%emt 0:00:31]} Rb6 {[%emt 0:00:25]} 25. Be7 {[%emt 0:00:15]} Ne5 {[%emt 0:00:18]} 26. Bg2 {[%emt 0:00:01]} Nc6 {[%emt 0:00:52]} 27. Bd6 {[%emt 0:00:03]} Qf6 {[%emt 0:00:26]} 28. a3 {[%emt 0:00:13]} b3 {[%emt 0:00:13]} 29. c4 {[%emt 0:00:20]} dxc3 {[%emt 0:00:13]} 30. Rxc3 {[%emt 0:00:04]} d4 {[%emt 0:00:23]} 31. Rc5 {[%emt 0:00:03]} e5 {[%emt 0:00:21]} 32. Bxe5 {[%emt 0:00:20]} Nxe5 {[%emt 0:00:02]} 33. Rcxe5 {[%emt 0:00:01]} Rc2 {[%emt 0:00:15]} 34. Qg5+ {[%emt 0:00:36]} Qxg5 {[%emt 0:00:01]} 35. Rxg5+ {[%emt 0:00:02]} Kf8 {[%emt 0:00:00]} 36. Bxb7 {[%emt 0:00:02]} Rxb7 {[%emt 0:00:00]} 37. Rb1 {[%emt 0:00:02]} Re7 {[%emt 0:00:05]} 38. Ra5 {[%emt 0:00:07]} Ree2 {[%emt 0:00:07]} 39. Rf1 {[%emt 0:00:32]} Red2 {[%emt 0:00:50]} 40. Rxa4 {[%emt 0:00:03]} Rxd3 {[%emt 0:00:01]} 41. Rb4 {[%emt 0:00:07]} Rxb2 {[%emt 0:00:00]} 42. Kg2 {[%emt 0:00:01]} Ra2 {[%emt 0:00:04]} 43. a4 {[%emt 0:00:02]} b2 {[%emt 0:00:02]} 44. Rb1 {[%emt 0:00:01]} Rd2 {[%emt 0:00:01]} 45. a5 {[%emt 0:00:03]} d3 {[%emt 0:00:00]} 46. Kf3 {[%emt 0:00:02]} Rc2 {[%emt 0:00:02]} 47. Ke3 {[%emt 0:00:02]} d2 {[%emt 0:00:01]} 48. Ke2 {[%emt 0:00:00]} Rc1 {[%emt 0:00:03]} 49. Kxd2 {[%emt 0:00:07]} Rxb1 {[%emt 0:00:01]} 50. a6 {[%emt 0:00:05]} Rba1 {[%emt 0:00:02]} 51. a7 {[%emt 0:00:08]} b1=Q+ {[%emt 0:00:01]} 0-1

[Event "CCT Chessable Masters Play-In 2025"]
[Site "Online"]
[Date "2025.02.17"]
[Round "1.69"]
[White "Samadov, Read"]
[Black "Mikaelyan, Arman"]
[Result "0-1"]
[ECO "E94"]
[WhiteElo "2501"]
[BlackElo "2497"]
[PlyCount "210"]
[EventDate "2025.02.13"]
[EventType "swiss"]
[EventCountry "NET"]
[TimeControl "600"]
[WhiteClock "0:00:33"]
[BlackClock "0:00:11"]

1. d4 {[%emt 0:00:02]} Nf6 {[%emt 0:00:07]} 2. c4 {[%emt 0:00:01]} g6 {[%emt 0:00:16]} 3. Nc3 {[%emt 0:00:02]} Bg7 {[%emt 0:00:02]} 4. e4 {[%emt 0:00:02]} d6 {[%emt 0:00:00]} 5. Nf3 {[%emt 0:00:01]} O-O {[%emt 0:00:01]} 6. Be2 {[%emt 0:00:01]} e5 {[%emt 0:00:01]} 7. O-O {[%emt 0:00:01]} Bg4 {[%emt 0:00:01]} 8. d5 {[%emt 0:00:02]} a5 {[%emt 0:00:01]} 9. Ne1 {[%emt 0:00:07]} Bd7 {[%emt 0:00:04]} 10. Nd3 {[%emt 0:00:04]} Na6 {[%emt 0:00:02]} 11. a3 {[%emt 0:00:07]} a4 {[%emt 0:00:11]} 12. f3 {[%emt 0:00:05]} Qe8 {[%emt 0:02:02]} 13. Be3 {[%emt 0:00:17]} Nh5 {[%emt 0:00:09]} 14. c5 {[%emt 0:00:27]} f5 {[%emt 0:00:28]} 15. Rc1 {[%emt 0:00:18]} Nf4 {[%emt 0:00:10]} 16. cxd6 {[%emt 0:00:30]} Nxe2+ {[%emt 0:00:10]} 17. Qxe2 {[%emt 0:00:03]} cxd6 {[%emt 0:00:00]} 18. Bf2 {[%emt 0:01:11]} Rc8 {[%emt 0:00:05]} 19. Qe3 {[%emt 0:00:05]} Qd8 {[%emt 0:00:09]} 20. Qa7 {[%emt 0:00:12]} Bh6 {[%emt 0:00:16]} 21. Qxb7 {[%emt 0:00:41]} Bxc1 {[%emt 0:00:03]} 22. Qxa6 {[%emt 0:00:06]} Bxb2 {[%emt 0:00:12]} 23. Nxb2 {[%emt 0:00:16]} Rxc3 {[%emt 0:00:02]} 24. Qxd6 {[%emt 0:00:00]} Rb3 {[%emt 0:00:52]} 25. Nc4 {[%emt 0:00:14]} Re8 {[%emt 0:00:25]} 26. Bh4 {[%emt 0:00:59]} Qxh4 {[%emt 0:00:08]} 27. Qxd7 {[%emt 0:00:00]} Qe7 {[%emt 0:00:03]} 28. Qxa4 {[%emt 0:00:03]} Qc5+ {[%emt 0:00:10]} 29. Kh1 {[%emt 0:00:02]} Reb8 {[%emt 0:00:00]} 30. Qa6 {[%emt 0:00:27]} Qe7 {[%emt 0:00:53]} 31. exf5 {[%emt 0:00:42]} Rb1 {[%emt 0:00:06]} 32. Nd2 {[%emt 0:00:07]} Rxf1+ {[%emt 0:00:03]} 33. Nxf1 {[%emt 0:00:00]} gxf5 {[%emt 0:00:05]} 34. h3 {[%emt 0:00:01]} e4 {[%emt 0:00:34]} 35. fxe4 {[%emt 0:00:05]} fxe4 {[%emt 0:00:00]} 36. Qe2 {[%emt 0:00:10]} Qe5 {[%emt 0:00:05]} 37. d6 {[%emt 0:00:12]} Qxd6 {[%emt 0:00:08]} 38. Qxe4 {[%emt 0:00:03]} Rf8 {[%emt 0:00:07]} 39. Ne3 {[%emt 0:00:13]} Qg6 {[%emt 0:00:02]} 40. Qd5+ {[%emt 0:00:06]} Kh8 {[%emt 0:00:07]} 41. Ng4 {[%emt 0:00:03]} Qg7 {[%emt 0:00:01]} 42. a4 {[%emt 0:00:04]} Rf1+ {[%emt 0:00:04]} 43. Kh2 {[%emt 0:00:00]} Qc7+ {[%emt 0:00:01]} 44. Qe5+ {[%emt 0:00:06]} Qxe5+ {[%emt 0:00:01]} 45. Nxe5 {[%emt 0:00:00]} Ra1 {[%emt 0:00:01]} 46. Nf3 {[%emt 0:00:02]} Rxa4 {[%emt 0:00:01]} 47. g4 {[%emt 0:00:00]} Kg7 {[%emt 0:00:01]} 48. Kg3 {[%emt 0:00:00]} Kf6 {[%emt 0:00:01]} 49. h4 {[%emt 0:00:02]} h6 {[%emt 0:00:04]} 50. g5+ {[%emt 0:00:01]} hxg5 {[%emt 0:00:01]} 51. Nxg5 {[%emt 0:00:01]} Kf5 {[%emt 0:00:03]} 52. Nf3 {[%emt 0:00:02]} Ra3 {[%emt 0:00:01]} 53. h5 {[%emt 0:00:01]} Rb3 {[%emt 0:00:03]} 54. Kf2 {[%emt 0:00:04]} Kg4 {[%emt 0:00:08]} 55. Nd2 {[%emt 0:00:06]} Rb2 {[%emt 0:00:04]} 56. Ke3 {[%emt 0:00:01]} Kxh5 {[%emt 0:00:00]} 57. Ne4 {[%emt 0:00:01]} Kg4 {[%emt 0:00:03]} 58. Nf2+ {[%emt 0:00:00]} Kf5 {[%emt 0:00:01]} 59. Nd3 {[%emt 0:00:01]} Rb3 {[%emt 0:00:01]} 60. Kd4 {[%emt 0:00:00]} Rb8 {[%emt 0:00:01]} 61. Kc4 {[%emt 0:00:01]} Rd8 {[%emt 0:00:02]} 62. Nc5 {[%emt 0:00:01]} Ke5 {[%emt 0:00:01]} 63. Nd3+ {[%emt 0:00:01]} Ke4 {[%emt 0:00:01]} 64. Nc5+ {[%emt 0:00:00]} Ke3 {[%emt 0:00:00]} 65. Ne6 {[%emt 0:00:02]} Rd6 {[%emt 0:00:01]} 66. Nc5 {[%emt 0:00:01]} Rd8 {[%emt 0:00:06]} 67. Ne6 {[%emt 0:00:01]} Rd7 {[%emt 0:00:00]} 68. Nc5 {[%emt 0:00:01]} Rd6 {[%emt 0:00:01]} 69. Kc3 {[%emt 0:00:01]} Rd4 {[%emt 0:00:01]} 70. Nb3 {[%emt 0:00:01]} Rh4 {[%emt 0:00:04]} 71. Nc5 {[%emt 0:00:01]} Rg4 {[%emt 0:00:01]} 72. Nb3 {[%emt 0:00:01]} Ke4 {[%emt 0:00:01]} 73. Kc4 {[%emt 0:00:01]} Ke5+ {[%emt 0:00:01]} 74. Kc3 {[%emt 0:00:03]} Kd5 {[%emt 0:00:01]} 75. Nd2 {[%emt 0:00:03]} Rg3+ {[%emt 0:00:01]} 76. Kc2 {[%emt 0:00:01]} Kd4 {[%emt 0:00:01]} 77. Nb3+ {[%emt 0:00:00]} Kc4 {[%emt 0:00:02]} 78. Nd2+ {[%emt 0:00:00]} Kb4 {[%emt 0:00:00]} 79. Ne4 {[%emt 0:00:03]} Re3 {[%emt 0:00:02]} 80. Nd2 {[%emt 0:00:01]} Rc3+ {[%emt 0:00:02]} 81. Kd1 {[%emt 0:00:01]} Ra3 {[%emt 0:00:02]} 82. Ke2 {[%emt 0:00:01]} Kc5 {[%emt 0:00:01]} 83. Nf3 {[%emt 0:00:02]} Kd5 {[%emt 0:00:01]} 84. Nd2 {[%emt 0:00:01]} Rc3 {[%emt 0:00:01]} 85. Nf3 {[%emt 0:00:01]} Ke4 {[%emt 0:00:01]} 86. Nd2+ {[%emt 0:00:01]} Kf4 {[%emt 0:00:00]} 87. Kf2 {[%emt 0:00:00]} Re3 {[%emt 0:00:01]} 88. Nf1 {[%emt 0:00:01]} Rf3+ {[%emt 0:00:04]} 89. Ke2 {[%emt 0:00:01]} Ra3 {[%emt 0:00:00]} 90. Nd2 {[%emt 0:00:01]} Re3+ {[%emt 0:00:02]} 91. Kf2 {[%emt 0:00:00]} Re8 {[%emt 0:00:00]} 92. Nf1 {[%emt 0:00:02]} Ke4 {[%emt 0:00:01]} 93. Ke2 {[%emt 0:00:01]} Kd4+ {[%emt 0:00:01]} 94. Kf3 {[%emt 0:00:02]} Rf8+ {[%emt 0:00:00]} 95. Ke2 {[%emt 0:00:01]} Ke4 {[%emt 0:00:01]} 96. Nd2+ {[%emt 0:00:01]} Kd4 {[%emt 0:00:00]} 97. Nf3+ {[%emt 0:00:00]} Kc3 {[%emt 0:00:00]} 98. Nd2 {[%emt 0:00:01]} Re8+ {[%emt 0:00:00]} 99. Kd1 {[%emt 0:00:01]} Rd8 {[%emt 0:00:01]} 100. Ke1 {[%emt 0:00:01]} Rxd2 {[%emt 0:00:00]} 101. Kf1 {[%emt 0:00:01]} Kd3 {[%emt 0:00:00]} 102. Kg1 {[%emt 0:00:01]} Ke3 {[%emt 0:00:01]} 103. Kh1 {[%emt 0:00:00]} Kf3 {[%emt 0:00:00]} 104. Kg1 {[%emt 0:00:00]} Rc2 {[%emt 0:00:01]} 105. Kf1 {[%emt 0:00:01]} Rc1# {[%emt 0:00:00]} 0-1

[Event "CCT Chessable Masters Play-In 2025"]
[Site "Online"]
[Date "2025.02.17"]
[Round "1.70"]
[White "Sokolovsky, Yahli"]
[Black "Suleymanli, Aydin"]
[Result "1-0"]
[ECO "D30"]
[WhiteElo "2552"]
[BlackElo "2623"]
[PlyCount "77"]
[EventDate "2025.02.13"]
[EventType "swiss"]
[EventCountry "NET"]
[TimeControl "600"]
[WhiteClock "0:03:18"]
[BlackClock "0:03:24"]

1. d4 {[%emt 0:00:32]} Nf6 {[%emt 0:00:04]} 2. Nf3 {[%emt 0:00:02]} e6 {[%emt 0:00:05]} 3. e3 {[%emt 0:00:13]} d5 {[%emt 0:00:01]} 4. c4 {[%emt 0:00:04]} a6 {[%emt 0:00:12]} 5. b3 {[%emt 0:00:16]} Be7 {[%emt 0:00:13]} 6. Bd3 {[%emt 0:00:02]} O-O {[%emt 0:00:13]} 7. O-O {[%emt 0:00:01]} b6 {[%emt 0:00:30]} 8. cxd5 {[%emt 0:00:06]} exd5 {[%emt 0:00:01]} 9. Ba3 {[%emt 0:00:04]} Bb7 {[%emt 0:00:04]} 10. Bxe7 {[%emt 0:00:02]} Qxe7 {[%emt 0:00:00]} 11. Nc3 {[%emt 0:00:07]} Nbd7 {[%emt 0:00:12]} 12. Rc1 {[%emt 0:00:00]} Rfe8 {[%emt 0:00:15]} 13. Ne2 {[%emt 0:00:23]} c5 {[%emt 0:00:03]} 14. dxc5 {[%emt 0:00:31]} bxc5 {[%emt 0:00:00]} 15. Ng3 {[%emt 0:00:48]} g6 {[%emt 0:00:03]} 16. a3 {[%emt 0:00:18]} Qf8 {[%emt 0:00:20]} 17. b4 {[%emt 0:00:05]} c4 {[%emt 0:00:14]} 18. Bc2 {[%emt 0:00:01]} a5 {[%emt 0:00:05]} 19. Rb1 {[%emt 0:00:10]} axb4 {[%emt 0:00:04]} 20. Rxb4 {[%emt 0:00:01]} Bc6 {[%emt 0:00:11]} 21. Nd4 {[%emt 0:00:03]} Rec8 {[%emt 0:00:01]} 22. Qa1 {[%emt 0:00:29]} Qc5 {[%emt 0:00:51]} 23. Rfb1 {[%emt 0:00:05]} Ra7 {[%emt 0:00:11]} 24. Nge2 {[%emt 0:00:10]} Rca8 {[%emt 0:00:17]} 25. a4 {[%emt 0:00:01]} Ra6 {[%emt 0:00:49]} 26. Nc3 {[%emt 0:00:22]} Ra5 {[%emt 0:00:41]} 27. Qa3 {[%emt 0:00:20]} Kg7 {[%emt 0:00:08]} 28. Qb2 {[%emt 0:00:04]} Kg8 {[%emt 0:00:04]} 29. h3 {[%emt 0:00:04]} R8a7 {[%emt 0:00:09]} 30. Qa3 {[%emt 0:00:03]} Kg7 {[%emt 0:00:03]} 31. Qb2 {[%emt 0:00:03]} Kg8 {[%emt 0:00:01]} 32. Qc1 {[%emt 0:00:03]} Ba8 {[%emt 0:00:06]} 33. Qd1 {[%emt 0:00:03]} Kg7 {[%emt 0:00:03]} 34. Qf3 {[%emt 0:00:01]} Ne5 {[%emt 0:00:01]} 35. Qg3 {[%emt 0:00:08]} Nd3 {[%emt 0:00:06]} 36. Bxd3 {[%emt 0:00:38]} cxd3 {[%emt 0:00:03]} 37. Nf5+ {[%emt 0:00:00]} Kf8 {[%emt 0:00:05]} 38. Rb8+ {[%emt 0:00:05]} Ne8 {[%emt 0:00:07]} 39. Qe5 {[%emt 0:00:14]} 1-0

[Event "CCT Chessable Masters Play-In 2025"]
[Site "Online"]
[Date "2025.02.17"]
[Round "1.71"]
[White "Bharath Subramaniyam H"]
[Black "Sharapov, Evgeny"]
[Result "0-1"]
[ECO "B50"]
[WhiteElo "2567"]
[BlackElo "2375"]
[PlyCount "72"]
[EventDate "2025.02.13"]
[EventType "swiss"]
[EventCountry "NET"]
[TimeControl "600"]
[WhiteClock "0:05:51"]
[BlackClock "0:04:07"]

1. e4 {[%emt 0:00:04]} c5 {[%emt 0:00:02]} 2. Nf3 {[%emt 0:00:05]} d6 {[%emt 0:00:01]} 3. Nc3 {[%emt 0:00:03]} e5 {[%emt 0:00:02]} 4. Bc4 {[%emt 0:00:02]} Be7 {[%emt 0:00:01]} 5. d3 {[%emt 0:00:00]} Nf6 {[%emt 0:00:01]} 6. h3 {[%emt 0:00:01]} O-O {[%emt 0:00:01]} 7. O-O {[%emt 0:00:00]} Nc6 {[%emt 0:00:03]} 8. Nh2 {[%emt 0:00:01]} Be6 {[%emt 0:00:07]} 9. Ng4 {[%emt 0:00:02]} Nxg4 {[%emt 0:00:08]} 10. hxg4 {[%emt 0:00:00]} Qd7 {[%emt 0:00:01]} 11. g5 {[%emt 0:00:05]} a6 {[%emt 0:00:19]} 12. Nd5 {[%emt 0:00:09]} Qd8 {[%emt 0:00:22]} 13. Qh5 {[%emt 0:00:21]} b5 {[%emt 0:00:03]} 14. Bb3 {[%emt 0:00:11]} Nd4 {[%emt 0:00:01]} 15. f4 {[%emt 0:00:48]} Nxb3 {[%emt 0:00:16]} 16. axb3 {[%emt 0:00:02]} Bxd5 {[%emt 0:00:01]} 17. exd5 {[%emt 0:00:02]} g6 {[%emt 0:00:06]} 18. Qg4 {[%emt 0:00:02]} exf4 {[%emt 0:00:22]} 19. Bxf4 {[%emt 0:00:00]} f5 {[%emt 0:00:23]} 20. Qg3 {[%emt 0:00:03]} Qd7 {[%emt 0:00:21]} 21. Rae1 {[%emt 0:00:02]} Rfe8 {[%emt 0:00:15]} 22. Re6 {[%emt 0:00:03]} Bf8 {[%emt 0:00:08]} 23. Rfe1 {[%emt 0:00:01]} Rad8 {[%emt 0:00:28]} 24. Kf1 {[%emt 0:00:12]} Rxe6 {[%emt 0:00:24]} 25. dxe6 {[%emt 0:00:07]} Qe7 {[%emt 0:00:26]} 26. Qf3 {[%emt 0:00:07]} d5 {[%emt 0:00:05]} 27. Re5 {[%emt 0:00:09]} Qb7 {[%emt 0:00:17]} 28. c4 {[%emt 0:00:15]} bxc4 {[%emt 0:00:11]} 29. dxc4 {[%emt 0:00:06]} Re8 {[%emt 0:00:12]} 30. Qxd5 {[%emt 0:00:34]} Qxd5 {[%emt 0:00:03]} 31. cxd5 {[%emt 0:00:00]} Bd6 {[%emt 0:00:05]} 32. Rxf5 {[%emt 0:00:02]} gxf5 {[%emt 0:00:06]} 33. Bxd6 {[%emt 0:00:00]} Rd8 {[%emt 0:00:07]} 34. e7 {[%emt 0:00:04]} Rc8 {[%emt 0:00:08]} 35. Bxc5 {[%emt 0:00:16]} Kf7 {[%emt 0:00:01]} 36. d6 {[%emt 0:00:10]} Rxc5 {[%emt 0:00:16]} 0-1